lending/lending_fUSD_20260204
["ID","MTS","AMOUNT","RATE_DAILY","PERIOD"]
[404494788,1770215451560,-500.0,0.00017973,2]
[404494789,1770215451571,-500.0,0.00017973,2]
[404494790,1770215451580,-500.0,0.00017973,2]
[404494791,1770215451590,-500.0,0.00017973,2]
[404494792,1770215451598,-500.0,0.00017973,2]
[404494793,1770215451608,-500.0,0.00017973,2]
[404494794,1770215451618,-500.0,0.00017973,2]
[404494795,1770215451629,-162.78445851,0.00017973,2]
[404494796,1770215451638,-500.0,0.00017973,2]
[404494797,1770215451648,-500.0,0.00017973,2]
[404494798,1770215451659,-471.81569838,0.00017973,2]
[404494799,1770215451668,-166.03608945,0.00017973,2]
[404494800,1770215451679,-166.73179712,0.00017973,2]
[404494801,1770215451688,-500.0,0.00017973,2]
[404494802,1770215451699,-500.0,0.00017973,2]
[404494803,1770215451708,-284.62088516,0.00017973,2]
[404494804,1770215451718,-500.0,0.00017973,2]
[404494805,1770215451729,-151.0,0.00017973,2]
[404494806,1770215451739,-151.0,0.00017973,2]
[404494807,1770215451748,-151.0,0.00017973,2]
[404494808,1770215451758,-500.0,0.00017973,2]
[404494809,1770215451769,-150.0,0.00017973,2]
[404494810,1770215451784,-159.70170571,0.00017984,2]
[404494811,1770215451793,-829.81196401,0.0001799,2]
[404494812,1770215451802,-829.81196401,0.0001799,2]
[404494813,1770215451812,-1178.6353464,0.00017999,5]
[404494814,1770215451821,-13717.69048011,0.00017999,2]
[404494815,1770215451831,-5800.0,0.00017999,2]
[404494816,1770215451840,-891.95596475,0.00017999,2]
[404494817,1770215451850,-300.0,0.00017999,2]
[404494818,1770215451858,-300.0,0.00017999,2]
[404494819,1770215451867,-300.0,0.00017999,2]
[404494820,1770215451877,-300.0,0.00017999,2]
[404494821,1770215451886,-200.064073,0.00017999,2]
[404494822,1770215451895,-151.0,0.00017999,2]
[404494823,1770215451905,-300.0,0.00017999,2]
[404494824,1770215451915,-5800.0,0.00017999,2]
[404494825,1770215451926,-390.74983131,0.00017999,2]
[404494826,1770215451936,-1200.0,0.00017999,3]
[404494827,1770215451945,-7551332.59521235,0.00018,2]
[404494828,1770215451955,-7501.91637541,0.00018,2]
[404494829,1770215451965,-2550.70475922,0.00018,2]
[404494830,1770215451975,-109537.05216623,0.00018,2]
[404494831,1770215451984,-1356052.19278857,0.00018,2]
[404494832,1770215452000,-2983.78666836,0.00018,2]
[404494833,1770215452635,-0.0398342,0.0001187,2]
[404494834,1770215452651,-302.0,0.0001187,2]
[404494835,1770215452701,-69.9601658,0.0001187,2]
[404494836,1770215452711,-151.0,0.00015471,2]
[404494837,1770215452720,-105.57497323,0.00017666,2]
[404494838,1770215452775,-5638.12395488,0.00017666,2]
[404494839,1770215452784,-480.55721144,0.00017708,2]
[404494840,1770215452794,-9550.46671596,0.00018,2]
[404494841,1770215452804,-310.9375516,0.00018,2]
[404494842,1770215452820,-530.37787389,0.00018,2]
[404494843,1770215452831,-5964.00000064,0.00018,2]
[404494844,1770215452842,-22019.99999999,0.00018,2]
[404494845,1770215452852,-398.90343059,0.00018,2]
[404494846,1770215452965,200.009499,0.00015784,30]
[404495009,1770215977802,219.06691934,5.534e-05,30]
[404495010,1770215979457,219.06691934,9e-07,30]
[404495020,1770216559284,-150.0,8.305e-05,2]
[404495021,1770216559305,-300.0,8.305e-05,2]
[404495022,1770216559340,-2254.252572,8.306e-05,2]
[404495027,1770216632547,-731.38855193,8.305e-05,2]
[404495028,1770216632570,-468.61144807,8.305e-05,2]
[404495029,1770216632580,-79.16163361,8.305e-05,2]
[404495030,1770216632663,-220.83836639,8.305e-05,2]
[404495031,1770216632673,-1261.66418307,8.306e-05,2]
[404495032,1770216632685,-1664.61404117,8.306e-05,2]
[404495033,1770216632695,-4238.41731318,8.306e-05,2]
[404495034,1770216632707,-9433.0854221,8.306e-05,2]
[404495035,1770216632717,-24118.15136003,8.306e-05,2]
[404495036,1770216632726,-219.0,8.306e-05,2]
[404495037,1770216632735,-10863.38884362,8.806e-05,2]
[404495045,1770216638341,-1954.9869771,8.806e-05,2]
[404495046,1770216638514,-9976.0,8.806e-05,2]
[404495047,1770216638588,-1317.5685,8.806e-05,2]
[404495054,1770216640483,-422.28753396,8.806e-05,2]
[404495055,1770216640494,-11545.08016803,8.806e-05,2]
[404495056,1770216640503,-255.0,9.136e-05,2]
[404495057,1770216640512,-1680.0,9.136e-05,2]
[404495058,1770216640522,-420.0,9.136e-05,2]
[404495059,1770216640531,-164.01557148,0.0001,2]
[404495060,1770216640541,-164.01557148,0.0001,2]
[404495061,1770216640551,-433.0,0.00010049,2]
[404495062,1770216640560,-2351.0,0.00010049,2]
[404495063,1770216640569,-587.0,0.00010049,2]
[404495064,1770216640579,-3455.44531511,0.00010306,2]
[404495065,1770216640591,-4348.12435315,0.00010306,2]
[404495066,1770216640602,-653.76080498,0.00010306,2]
[404495067,1770216640626,-10687.86692733,0.00010306,2]
[404495068,1770216640637,-13301.40872127,0.00010306,2]
[404495069,1770216640648,-16369.97707816,0.00010306,2]
[404495070,1770216640658,-250.0,0.00010975,2]
[404495071,1770216640669,-736.0,0.00011054,2]
[404495072,1770216640679,-2042.61420057,0.00011054,2]
[404495073,1770216640699,-1249.38579943,0.00011054,2]
[404495074,1770216640709,-249.33149633,0.00011054,2]
[404495075,1770216640803,-573.66850367,0.00011054,2]
[404495076,1770216640813,-150.0,0.00011248,2]
[404495077,1770216640822,-500.0,0.00011306,2]
[404495078,1770216640832,-166.66,0.00011491,2]
[404495079,1770216640842,-150.0,0.00011502,2]
[404495080,1770216640851,-600.0,0.00011653,2]
[404495081,1770216640864,-357.19,0.00011664,2]
[404495082,1770216640873,-268.34,0.00011726,2]
[404495083,1770216640883,-811.82184933,0.000118,2]
[404495084,1770216640892,-1330.04455105,0.000118,2]
[404495085,1770216640902,-200.12624391,0.000118,2]
[404495086,1770216640911,-1471.27872755,0.000118,2]
[404495087,1770216640921,-320.3714743,0.000118,2]
[404495088,1770216640930,-27605.33425569,0.000118,2]
[404495089,1770216640940,-3829.13261875,0.000118,2]
[404495090,1770216640949,-2942.0644245,0.0001185,2]
[404495091,1770216640961,-166.66,0.0001187,2]
[404495092,1770216640970,-276.603988,0.0001189,2]
[404495093,1770216640979,-276.603988,0.0001189,2]
[404495094,1770216640992,-151.0,0.00011897,2]
[404495095,1770216641002,-151.0,0.00011897,2]
[404495096,1770216641011,-151.0,0.00011897,2]
[404495097,1770216641021,-218.15633909,0.00011898,2]
[404495098,1770216641030,-500.0,0.00011898,2]
[404495099,1770216641039,-500.0,0.00011898,2]
[404495100,1770216641049,-500.0,0.00011898,2]
[404495101,1770216641059,-500.0,0.00011898,2]
[404495102,1770216641069,-500.0,0.00011898,2]
[404495103,1770216641078,-200.0,0.00011898,2]
[404495104,1770216641087,-500.0,0.00011899,2]
[404495105,1770216641096,-204.91953757,0.00011899,2]
[404495106,1770216641108,-263.89834288,0.00011899,2]
[404495107,1770216641117,-457.99564182,0.00011899,2]
[404495108,1770216641127,-159.15851105,0.00011899,2]
[404495109,1770216641137,-361.91882675,0.00011899,2]
[404495110,1770216641147,-187.42077116,0.00011899,2]
[404495111,1770216641156,-3056232.4918728,0.000119,2]
[404495112,1770216641205,-237397.28621439,0.000119,2]
[404495113,1770216641216,-178913.94884951,0.000119,2]
[404495133,1770216645123,-565.11299435,0.000119,2]
[404495144,1770216646729,-26891.16006895,0.000119,2]
[404495145,1770216646739,-2500.0,0.000119,2]
[404495146,1770216646749,-300.0,0.00011931,2]
[404495147,1770216646759,-195.0,0.00011931,2]
[404495148,1770216646769,-250.0,0.00011953,2]
[404495149,1770216646778,-300.0,0.00011974,2]
[404495150,1770216646789,-311.8057918,0.00011974,2]
[404495151,1770216646798,-31897.70090753,0.00012,2]
[404495152,1770216646815,-4637.1472201,0.00012,2]
[404495230,1770217345802,8801.45433199,0.00022,120]
[404495231,1770217362753,1135.11567853,0.000211,90]
[404495243,1770217539167,-500.0,0.00010803,2]
[404495244,1770217733433,2938.88432147,0.000211,90]
[404495245,1770217757710,6963.31910743,0.00021,30]
[404495246,1770217763149,-740.033552,0.00010776,2]
[404495247,1770217763172,-9.32569796,0.0001083,2]
[404495265,1770217831547,-239.0,0.0001083,2]
[404495266,1770217831558,-98.40181197,0.0001083,2]
[404495267,1770217831569,-192.27249007,0.0001083,2]
[404495268,1770217831579,-112.0380516,0.00010844,2]
[404495269,1770217831610,-256.43019878,0.00010844,2]
[404495270,1770217831623,-200.0,0.00010862,2]
[404495271,1770217831633,-300.0,0.00010868,2]
[404495272,1770217831643,-311.8057918,0.00010868,2]
[404495273,1770217831653,-1000.0,0.00010908,2]
[404495274,1770217831663,-150.0,0.00010908,2]
[404495275,1770217831672,-300.0,0.00010908,2]
[404495276,1770217831682,-1200.0,0.00010908,2]
[404495277,1770217831692,-62461.34,0.00010909,2]
[404495278,1770217831702,-204.27647527,0.00010909,2]
[404495279,1770217831711,-204.27647527,0.00010909,2]
[404495280,1770217831721,-166.66,0.00010959,2]
[404495281,1770217831731,-2139.60354195,0.0001105,2]
[404495282,1770217831741,-166.66,0.00011083,2]
[404495284,1770217831752,-166.66,0.00011206,2]
[404495286,1770217831762,-2962.5,0.00011233,2]
[404495288,1770217831771,-2114.21,0.00011288,2]
[404495290,1770217831781,-9999.99,0.00011288,2]
[404495291,1770217831790,-631.73,0.00011297,2]
[404495293,1770217831799,-500.0,0.00011297,2]
[404495294,1770217831810,-500.0,0.00011297,2]
[404495295,1770217831819,-500.0,0.00011297,2]
[404495296,1770217831828,-424.05409098,0.00011297,2]
[404495297,1770217831838,-166.66,0.0001133,2]
[404495298,1770217831847,-934.0,0.00011432,2]
[404495299,1770217831856,-172.0,0.0001144,2]
[404495300,1770217831867,-166.66,0.00011453,2]
[404495301,1770217831877,-948.0,0.00011463,2]
[404495302,1770217831886,-4123.0271,0.0001157,2]
[404495303,1770217831896,-166.66,0.00011577,2]
[404495304,1770217831905,-619.07991,0.00011586,2]
[404495305,1770217831915,-421.997,0.0001162,2]
[404495306,1770217831924,-2500.0,0.0001162,2]
[404495307,1770217831934,-856.21106482,0.0001167,2]
[404495308,1770217831943,-811.82184933,0.0001167,2]
[404495309,1770217831952,-500.0,0.00011792,2]
[404495310,1770217831962,-500.0,0.00011792,2]
[404495311,1770217831971,-218.15633909,0.00011792,2]
[404495312,1770217831980,-500.0,0.00011792,2]
[404495313,1770217831990,-500.0,0.00011792,2]
[404495314,1770217831999,-500.0,0.00011792,2]
[404495315,1770217832008,-500.0,0.00011792,2]
[404495316,1770217832018,-500.0,0.00011792,2]
[404495317,1770217832027,-500.0,0.00011792,2]
[404495318,1770217832036,-500.0,0.00011792,2]
[404495319,1770217832046,-500.0,0.00011792,2]
[404495320,1770217832055,-500.0,0.00011792,2]
[404495321,1770217832065,-500.0,0.00011792,2]
[404495322,1770217832074,-500.0,0.00011792,2]
[404495323,1770217832084,-500.0,0.00011792,2]
[404495324,1770217832093,-500.0,0.00011792,2]
[404495325,1770217832103,-500.0,0.00011792,2]
[404495326,1770217832115,-500.0,0.00011792,2]
[404495327,1770217832125,-500.0,0.00011792,2]
[404495328,1770217832134,-500.0,0.00011792,2]
[404495329,1770217832144,-312.7328827,0.00011792,2]
[404495330,1770217832154,-500.0,0.00011792,2]
[404495331,1770217832164,-500.0,0.00011792,2]
[404495332,1770217832174,-500.0,0.00011792,2]
[404495333,1770217832183,-500.0,0.00011792,2]
[404495334,1770217832193,-500.0,0.00011792,2]
[404495335,1770217832203,-500.0,0.00011792,2]
[404495336,1770217832213,-500.0,0.00011792,2]
[404495337,1770217832223,-500.0,0.00011792,2]
[404495338,1770217832232,-500.0,0.00011792,2]
[404495339,1770217832241,-500.0,0.00011792,2]
[404495340,1770217832251,-573.63698697,0.00011792,2]
[404495341,1770217832261,-33275.4141,0.00011793,2]
[404495342,1770217832271,-1000.0,0.000118,2]
[404495343,1770217832281,-587.57079789,0.000118,2]
[404495344,1770217832290,-1550.60863191,0.000118,2]
[404495345,1770217832299,-2735.45742621,0.000118,2]
[404495346,1770217832310,-195.0,0.00011853,2]
[404495347,1770217832319,-250.0,0.00011883,2]
[404495348,1770217832330,-195.0,0.00011883,2]
[404495349,1770217832340,-300.0,0.00011883,2]
[404495350,1770217832349,-200.0,0.00011885,2]
[404495351,1770217832358,-500.0,0.00011885,2]
[404495352,1770217832375,-500.0,0.00011885,2]
[404495353,1770217832384,-500.0,0.00011885,2]
[404495354,1770217832394,-500.0,0.00011885,2]
[404495355,1770217832404,-500.0,0.00011885,2]
[404495356,1770217832413,-500.0,0.00011885,2]
[404495357,1770217832423,-500.0,0.00011885,2]
[404495358,1770217832433,-500.0,0.00011885,2]
[404495359,1770217832442,-500.0,0.00011885,2]
[404495360,1770217832451,-387.88207769,0.00011885,2]
[404495361,1770217832462,-500.0,0.00011885,2]
[404495362,1770217832472,-500.0,0.00011885,2]
[404495363,1770217832482,-500.0,0.00011885,2]
[404495364,1770217832491,-500.0,0.00011885,2]
[404495365,1770217832500,-151.0,0.00011885,2]
[404495366,1770217832509,-151.0,0.00011885,2]
[404495367,1770217832518,-151.0,0.00011885,2]
[404495368,1770217832528,-151.0,0.00011885,2]
[404495369,1770217832538,-151.0,0.00011885,2]
[404495370,1770217832547,-151.0,0.00011885,2]
[404495371,1770217832557,-151.0,0.00011885,2]
[404495372,1770217832566,-151.0,0.00011885,2]
[404495373,1770217832576,-151.0,0.00011885,2]
[404495374,1770217832585,-151.0,0.00011885,2]
[404495375,1770217832594,-151.0,0.00011885,2]
[404495376,1770217832604,-500.0,0.00011885,2]
[404495377,1770217832615,-1852.328,0.00011892,2]
[404495378,1770217832625,-164.564,0.00011892,2]
[404495379,1770217832635,-41343.5121634,0.00011899,2]
[404495380,1770217832645,-196.3623483,0.00011899,2]
[404495381,1770217832654,-27605.33425569,0.000119,2]
[404495382,1770217832663,-250.0,0.00011913,2]
[404495383,1770217832673,-500.0,0.00011943,2]
[404495384,1770217832683,-195.0,0.00011943,2]
[404495385,1770217832692,-255.0,0.00011944,2]
[404495386,1770217832702,-500.0,0.00011988,2]
[404495387,1770217832711,-420.0,0.00011988,2]
[404495388,1770217832720,-1680.0,0.00011999,2]
[404495389,1770217832729,-110650.39678508,0.00012,2]
[404495390,1770217833289,-3672.9359541,0.00012,2]
[404495391,1770217833301,-3265.49999998,0.00012,2]
[404495392,1770217833314,-640.381,0.00012,2]
[404495400,1770217838089,-332.99999985,0.00012,2]
[404495401,1770217838102,-441.0999981,0.00012,2]
[404495402,1770217838116,-49837.11489502,0.00012,2]
[404495403,1770217838129,-188.96428999,0.00012,2]
[404495404,1770217838140,-151.0,0.00012,2]
[404495405,1770217838151,-153.0,0.00012,2]
[404495406,1770217838161,-153.0,0.00012,2]
[404495407,1770217838172,-278.97730158,0.00012,2]
[404495408,1770217838183,-500.0,0.00012066,2]
[404495409,1770217838193,-1600.0,0.00012127,2]
[404495410,1770217838203,-166.66,0.00012249,2]
[404495411,1770217838213,-500.0,0.00012359,2]
[404495412,1770217838223,-811.82184929,0.00012362,2]
[404495413,1770217838233,-600.0,0.00012364,2]
[404495414,1770217838243,-287.51,0.00012376,2]
[404495415,1770217838253,-200.0,0.00012433,2]
[404495416,1770217838263,-500.0,0.00012433,2]
[404495417,1770217838273,-249.76,0.0001253,2]
[404495418,1770217838284,-429.80772295,0.00012564,2]
[404495419,1770217838294,-24392.38394112,0.00012567,2]
[404495420,1770217838308,-658.27112465,0.00012567,2]
[404495421,1770217838320,-2010.0,0.00012567,2]
[404495424,1770217838361,-544.67918985,0.00012567,2]
[404495425,1770217838379,-166.66,0.00012628,2]
[404495426,1770217838389,-1748.87081015,0.00012661,2]
[404495427,1770217838401,-390.7327318,0.00012661,2]
[404495428,1770217838413,-500.0,0.00012981,2]
[404495429,1770217838423,-75.9472682,0.00013008,2]
[404495430,1770217838434,-90.7127318,0.00013008,2]
[404495432,1770217838444,-350.7970469,0.00013054,2]
[404495435,1770217838456,-461.02480239,0.00013054,2]
[404495437,1770217838465,-433.0,0.00013078,2]
[404495439,1770217838475,-383.0,0.00013174,2]
[404495440,1770217838485,-311.4360014,0.00013198,2]
[404495446,1770217839684,-980.42542559,0.00013198,2]
[404495447,1770217839696,-1059.13857301,0.00013198,2]
[404495448,1770217839706,-296.13667695,0.00013198,2]
[404495449,1770217839715,-249.76,0.00013226,2]
[404495450,1770217839724,-2469.96475004,0.00013233,2]
[404495451,1770217839736,-10485.4,0.00013233,2]
[404495452,1770217839747,-840.20573604,0.00013233,2]
[404495453,1770217839791,-501.32249289,0.00013233,2]
[404495454,1770217839803,-1525.0,0.00013233,2]
[404495455,1770217839814,-2873.09432935,0.00013233,2]
[404495456,1770217839825,-2511.0,0.00013233,2]
[404495457,1770217839836,-6399.3469473,0.00013233,2]
[404495458,1770217839846,-166.66,0.00013387,2]
[404495459,1770217839855,-500.0,0.00013529,2]
[404495460,1770217839865,-1178.63534639,0.00013597,3]
[404495461,1770217839878,-1178.63534639,0.00013597,3]
[404495462,1770217839887,-6970.43736104,0.000136,2]
[404495463,1770217839897,-2434.41647844,0.00013614,2]
[404495464,1770217839906,-30455.86852043,0.00013617,2]
[404495465,1770217839955,-10887.64364297,0.00013617,2]
[404495466,1770217839964,-1600.0,0.00013643,2]
[404495467,1770217839973,-500.0,0.00013698,2]
[404495468,1770217839983,-500.0,0.00013698,2]
[404495469,1770217839992,-500.0,0.00013698,2]
[404495470,1770217840002,-500.0,0.00013698,2]
[404495471,1770217840012,-500.0,0.00013698,2]
[404495472,1770217840021,-500.0,0.00013698,2]
[404495473,1770217840030,-500.0,0.00013698,2]
[404495474,1770217840039,-500.0,0.00013698,2]
[404495475,1770217840049,-500.0,0.00013698,2]
[404495476,1770217840059,-500.0,0.00013698,2]
[404495477,1770217840068,-500.0,0.00013698,2]
[404495478,1770217840077,-514.1682276,0.00013698,2]
[404495479,1770217840087,-500.0,0.00013698,2]
[404495480,1770217840096,-502.87563044,0.00013698,2]
[404495481,1770217840106,-504.11677041,0.00013698,2]
[404495482,1770217840115,-500.0,0.00013698,2]
[404495483,1770217840128,-503.69401691,0.00013698,2]
[404495484,1770217840138,-500.0,0.00013698,2]
[404495485,1770217840147,-500.0,0.00013698,2]
[404495486,1770217840156,-500.0,0.00013698,2]
[404495487,1770217840167,-500.0,0.00013698,2]
[404495488,1770217840178,-500.0,0.00013698,2]
[404495489,1770217840188,-500.0,0.00013698,2]
[404495491,1770217840198,-500.0,0.00013698,2]
[404495493,1770217840207,-500.0,0.00013698,2]
[404495495,1770217840217,-500.0,0.00013698,2]
[404495497,1770217840227,-500.0,0.00013698,2]
[404495499,1770217840237,-500.0,0.00013698,2]
[404495501,1770217840246,-500.0,0.00013698,2]
[404495503,1770217840255,-500.0,0.00013698,2]
[404495505,1770217840264,-500.0,0.00013698,2]
[404495507,1770217840273,-500.0,0.00013698,2]
[404495509,1770217840283,-500.0,0.00013698,2]
[404495511,1770217840292,-500.0,0.00013698,2]
[404495513,1770217840302,-500.0,0.00013698,2]
[404495515,1770217840312,-500.0,0.00013698,2]
[404495517,1770217840321,-500.0,0.00013698,2]
[404495519,1770217840332,-500.0,0.00013698,2]
[404495521,1770217840342,-500.0,0.00013698,2]
[404495523,1770217840351,-500.0,0.00013698,2]
[404495525,1770217840361,-500.0,0.00013698,2]
[404495527,1770217840373,-500.0,0.00013698,2]
[404495529,1770217840382,-500.0,0.00013698,2]
[404495530,1770217840391,-500.0,0.00013698,2]
[404495531,1770217840402,-500.0,0.00013698,2]
[404495532,1770217840412,-589.03499968,0.00013698,2]
[404495533,1770217840421,-500.0,0.00013698,2]
[404495534,1770217840431,-500.0,0.00013698,2]
[404495535,1770217840441,-500.0,0.00013698,2]
[404495536,1770217840451,-519.14978785,0.00013698,2]
[404495537,1770217840460,-500.0,0.00013698,2]
[404495538,1770217840469,-500.0,0.00013698,2]
[404495539,1770217840478,-500.0,0.00013698,2]
[404495540,1770217840487,-500.0,0.00013698,2]
[404495541,1770217840496,-500.0,0.00013698,2]
[404495542,1770217840506,-500.0,0.00013698,2]
[404495543,1770217840515,-500.0,0.00013698,2]
[404495544,1770217840525,-500.0,0.00013698,2]
[404495545,1770217840534,-500.0,0.00013698,2]
[404495546,1770217840543,-500.0,0.00013698,2]
[404495547,1770217840552,-500.0,0.00013698,2]
[404495548,1770217840562,-500.0,0.00013698,2]
[404495549,1770217840571,-374.45433022,0.00013698,2]
[404495550,1770217840580,-500.0,0.00013698,2]
[404495551,1770217840590,-523.26417397,0.00013698,2]
[404495552,1770217840600,-500.0,0.00013698,2]
[404495553,1770217840609,-500.0,0.00013698,2]
[404495554,1770217840620,-500.0,0.00013698,2]
[404495555,1770217840629,-500.0,0.00013698,2]
[404495556,1770217840638,-500.0,0.00013698,2]
[404495557,1770217840647,-500.0,0.00013698,2]
[404495558,1770217840657,-500.0,0.00013698,2]
[404495559,1770217840666,-500.0,0.00013698,2]
[404495560,1770217840883,-500.0,0.00013698,2]
[404495561,1770217840893,-587.5541255,0.00013698,2]
[404495562,1770217840903,-500.0,0.00013698,2]
[404495563,1770217840912,-496.93460441,0.00013698,2]
[404495564,1770217840922,-500.0,0.00013698,2]
[404495565,1770217840931,-500.0,0.00013698,2]
[404495566,1770217840941,-500.0,0.00013698,2]
[404495567,1770217840951,-500.0,0.00013698,2]
[404495568,1770217840960,-353.03533501,0.00013698,2]
[404495569,1770217840970,-500.0,0.00013698,2]
[404495570,1770217840979,-500.0,0.00013698,2]
[404495571,1770217840989,-500.0,0.00013698,2]
[404495572,1770217840998,-500.0,0.00013698,2]
[404495573,1770217841007,-500.0,0.00013698,2]
[404495574,1770217841017,-500.0,0.00013698,2]
[404495575,1770217841026,-500.0,0.00013698,2]
[404495576,1770217841035,-500.0,0.00013698,2]
[404495577,1770217841044,-500.0,0.00013698,2]
[404495578,1770217841054,-500.0,0.00013698,2]
[404495579,1770217841064,-500.0,0.00013698,2]
[404495580,1770217841073,-159.30915247,0.00013698,2]
[404495581,1770217841084,-500.0,0.00013698,2]
[404495582,1770217841093,-500.0,0.00013698,2]
[404495583,1770217841102,-500.0,0.00013698,2]
[404495584,1770217841112,-500.0,0.00013698,2]
[404495585,1770217841122,-500.0,0.00013698,2]
[404495586,1770217841132,-500.0,0.00013698,2]
[404495587,1770217841142,-500.0,0.00013698,2]
[404495588,1770217841151,-500.0,0.00013698,2]
[404495589,1770217841161,-500.0,0.00013698,2]
[404495590,1770217841171,-500.0,0.00013698,2]
[404495591,1770217841180,-500.0,0.00013698,2]
[404495592,1770217841190,-500.0,0.00013698,2]
[404495593,1770217841200,-500.0,0.00013698,2]
[404495594,1770217841209,-500.0,0.00013698,2]
[404495595,1770217841219,-500.0,0.00013698,2]
[404495596,1770217841228,-353.05494351,0.00013698,2]
[404495597,1770217841238,-500.0,0.00013698,2]
[404495598,1770217841247,-500.0,0.00013698,2]
[404495599,1770217841256,-500.0,0.00013698,2]
[404495600,1770217841266,-500.0,0.00013698,2]
[404495601,1770217841275,-500.0,0.00013698,2]
[404495602,1770217841284,-500.0,0.00013698,2]
[404495603,1770217841294,-500.0,0.00013698,2]
[404495604,1770217841304,-500.0,0.00013698,2]
[404495605,1770217841315,-500.0,0.00013698,2]
[404495606,1770217841324,-500.0,0.00013698,2]
[404495607,1770217841336,-500.0,0.00013698,2]
[404495608,1770217841345,-507.93374803,0.00013698,2]
[404495609,1770217841355,-500.0,0.00013698,2]
[404495610,1770217841366,-500.0,0.00013698,2]
[404495611,1770217841378,-500.0,0.00013698,2]
[404495612,1770217841388,-500.0,0.00013698,2]
[404495613,1770217841397,-500.0,0.00013698,2]
[404495614,1770217841408,-499.73386374,0.00013698,2]
[404495615,1770217841417,-500.0,0.00013698,2]
[404495616,1770217841427,-500.0,0.00013698,2]
[404495617,1770217841436,-500.0,0.00013698,2]
[404495618,1770217841445,-500.0,0.00013698,2]
[404495619,1770217841454,-500.0,0.00013698,2]
[404495620,1770217841464,-500.0,0.00013698,2]
[404495621,1770217841474,-326.5559361,0.00013698,2]
[404495622,1770217841483,-500.0,0.00013698,2]
[404495623,1770217841492,-500.0,0.00013698,2]
[404495624,1770217841502,-500.0,0.00013698,2]
[404495625,1770217841511,-504.83472388,0.00013698,2]
[404495626,1770217841521,-307.02,0.00013699,2]
[404495627,1770217841530,-773.56,0.00013699,2]
[404495628,1770217841540,-811.82184929,0.00013747,2]
[404495629,1770217841551,-4092.08071265,0.000138,2]
[404495630,1770217841560,-200.0,0.00013851,2]
[404495631,1770217841569,-27605.33425562,0.000139,2]
[404495632,1770217841579,-249.76,0.00013922,2]
[404495633,1770217841588,-869.18,0.00013952,2]
[404495634,1770217841598,-773.56,0.00013973,2]
[404495635,1770217841607,-500.0,0.00014,2]
[404495636,1770217841616,-500.0,0.00014,2]
[404495637,1770217841627,-500.0,0.00014077,2]
[404495638,1770217841636,-869.18,0.00014226,2]
[404495639,1770217841645,-773.56,0.00014247,2]
[404495640,1770217841655,-2139.60354195,0.00014271,2]
[404495641,1770217841664,-250.0,0.0001431,2]
[404495642,1770217841673,-736.0,0.00014322,2]
[404495643,1770217841682,-307.02,0.00014384,2]
[404495644,1770217841692,-811.82184929,0.00014439,2]
[404495645,1770217841701,-2434.41647844,0.00014471,2]
[404495646,1770217841710,-869.18,0.000145,2]
[404495647,1770217841719,-3292.0,0.00014518,2]
[404495648,1770217841728,-773.56,0.00014521,2]
[404495649,1770217841737,-27605.33425562,0.00014567,2]
[404495650,1770217841747,-263.89834288,0.00014599,2]
[404495651,1770217841757,-159.15851105,0.00014599,2]
[404495652,1770217841766,-187.42077116,0.00014599,2]
[404495653,1770217841775,-361.91882675,0.00014599,2]